bitfinex-derivatives/quotes_ETHF0:USTF0_20251117
["timestamp","ask_amount","ask_price","bid_price","bid_amount"]
[1763343345643,0.51643,3139.0,3138.6,3.21627501]
[1763343346147,0.00477525,3139.1,3138.6,3.21627501]
[1763343346347,0.51643,3139.0,3138.6,3.21627501]
[1763343346845,0.51644,3138.9,3138.6,3.21627501]
[1763343347546,0.51647,3138.7,3138.6,0.00847501]
[1763343348344,3.2078,3138.8,3138.1,3.2078]
[1763343348550,0.51653,3138.4,3138.1,3.2078]
[1763343348750,3.72433,3138.4,3138.0,0.7373]
[1763343348949,3.2078,3138.8,3138.0,0.7373]
[1763343349151,3.2078,3138.8,3138.1,0.00477525]
[1763343349350,0.51654,3138.3,3138.1,0.00477525]
[1763343349551,0.5165,3138.6,3138.5,0.7328]
[1763343349755,3.72426,3138.8,3138.5,0.7328]
[1763343350438,3.2078,3138.8,3138.5,0.7328]
[1763343350645,3.2078,3138.8,3138.7,1.19]
[1763343350838,0.51648,3138.7,3138.5,0.7328]
[1763343351443,0.51653,3138.4,3138.2,3.2078]
[1763343351950,0.51649,3138.6,3138.5,0.7328]
[1763343353046,0.51651,3138.5,3138.2,3.2078]
[1763343353750,0.51651,3138.5,3138.1,0.00477525]
[1763343355149,0.51647,3138.7,3138.2,0.51654]
[1763343355351,3.2078,3138.8,3138.5,0.7328]
[1763343355648,3.72426,3138.8,3138.5,0.7328]
[1763343356350,3.2078,3138.8,3138.7,1.19]
[1763343357438,3.2078,3138.8,3138.5,0.7328]
[1763343357642,3.72426,3138.8,3138.5,0.7328]
[1763343357849,0.51647,3138.7,3138.5,0.7328]
[1763343358049,3.2078,3138.8,3138.5,0.7328]
[1763343358251,3.72426,3138.8,3138.5,0.7328]
[1763343358451,0.51647,3138.7,3138.5,0.7328]
[1763343360265,3.2078,3138.8,3138.1,0.00477525]
[1763343360446,0.51654,3138.3,3138.1,0.00477525]
[1763343361055,3.2078,3138.4,3138.1,0.00477525]
[1763343361452,0.51654,3138.3,3138.1,0.00477525]
[1763343361649,3.2078,3138.4,3138.1,0.00477525]
[1763343362049,0.51654,3138.3,3138.1,0.00477525]
[1763343363359,3.2078,3138.4,3138.1,0.00477525]
[1763343364160,3.72433,3138.4,3138.1,0.00477525]
[1763343364356,0.51655,3138.2,3138.1,0.00477525]
[1763343364951,0.51654,3138.3,3138.1,0.00477525]
[1763343365551,0.51657,3138.1,3138.0,3.63e-05]
[1763343365753,0.51673,3137.2,3136.9,3.2078]
[1763343366548,0.52146525,3137.4,3136.9,3.2078]
[1763343366857,0.00477525,3137.4,3137.3,1.19]
[1763343367556,0.52146525,3137.4,3137.0,0.74084725]
[1763343367754,0.00477525,3137.4,3137.0,0.74084725]
[1763343368261,0.51671,3137.3,3137.0,0.74084725]
[1763343368854,0.5167,3137.3,3137.0,0.74084725]
[1763343369258,0.51672,3137.2,3137.0,0.74084725]
[1763343369460,0.52146525,3137.4,3137.0,0.74084725]
[1763343369763,0.51671,3137.3,3137.0,0.74084725]
[1763343370255,0.00477525,3137.4,3137.0,0.74084725]
[1763343370958,0.52146525,3137.4,3137.0,0.74084725]
[1763343372664,0.00477525,3137.4,3137.0,0.74084725]
[1763343372863,0.00477525,3137.4,3137.3,1.19]
[1763343373159,4.4568,3138.1,3137.5,0.7328]
[1763343373357,0.51659,3138.0,3137.5,1.24946]
[1763343373657,3.2078,3138.1,3138.0,1.9228]
[1763343375261,4.97337,3138.1,3138.0,1.9228]
[1763343375457,1.249,3137.4,3137.3,3.2078]
[1763343375762,1.249,3137.4,3137.0,1.8764928]
[1763343375763,1.249,3137.4,3137.0,0.8451179]
[1763343375954,1.249,3137.1,3137.0,0.00354725]
[1763343376161,1.251365,3137.1,3137.0,0.00354725]
[1763343376863,1.251365,3137.1,3137.0,1.19354725]
[1763343377460,0.002365,3137.1,3137.0,1.87044725]
[1763343378464,1.14393542,3138.3,3138.0,1.1204]
[1763343378465,3.2078,3138.1,3138.0,1.1204]
[1763343378765,3.2078,3138.1,3138.0,1.8044]
[1763343379362,0.00477525,3138.4,3138.3,1.1204]
[1763343379565,0.00748659,3138.4,3138.3,1.1204]
[1763343379958,0.00748659,3138.4,3138.3,4.3282]
[1763343382065,1.59450659,3138.4,3138.3,3.2078]
[1763343382267,1.07798659,3138.4,3138.0,0.684]
[1763343382468,0.00748659,3138.4,3138.3,1.1204]
[1763343383072,1.07798659,3138.4,3138.2,3.2078]
[1763343383671,1.0705,3138.3,3138.2,3.2078]
[1763343383972,0.00748659,3138.4,3138.3,1.1204]
[1763343384169,1.0705,3138.3,3138.2,3.2078]
[1763343384378,0.00748659,3138.4,3138.2,4.3282]
[1763343384674,1.0705,3138.3,3138.2,3.2078]
[1763343385473,1.0705,3138.3,3138.2,4.3282]
[1763343385864,0.00748659,3138.4,3138.2,4.3282]
[1763343386165,0.00748659,3138.4,3138.3,1.1204]
[1763343387973,1.07798659,3138.4,3138.3,1.1204]
[1763343388472,0.00748659,3138.4,3138.3,1.1204]
[1763343390365,0.00748659,3138.4,3138.3,1.63694]
[1763343390571,3.2078,3139.4,3138.7,0.51646]
[1763343390765,3.2078,3139.4,3138.7,3.72426]
[1763343391271,3.2078,3139.4,3139.3,1.1204]
[1763343391471,3.21120546,3139.4,3139.3,1.12340931]
[1763343393267,4.28170546,3139.4,3139.3,0.00300931]
[1763343396475,1.07390546,3139.4,3139.3,0.00300931]
[1763343396678,4.28170546,3139.4,3139.3,0.00300931]
[1763343401870,5.78434742,3139.4,3139.3,0.00300931]
[1763343404378,4.28170546,3139.4,3139.3,0.00300931]
[1763343409285,5.42564088,3139.4,3139.3,0.00300931]
[1763343409686,6.92828284,3139.4,3139.3,0.00300931]
[1763343410288,5.78434742,3139.4,3139.3,0.00300931]
[1763343410592,5.42619713,3139.4,3139.3,0.00300931]
[1763343411887,0.00340546,3139.4,3139.3,1.07780931]
[1763343412293,0.974,3139.6,3139.5,0.6794]
[1763343412485,0.974,3139.6,3139.5,1.7542]
[1763343412678,0.974,3139.6,3139.3,0.00300931]
[1763343412884,0.00477525,3139.7,3139.3,1.07780931]
[1763343413184,0.00786197,3139.7,3139.6,1.0748]
[1763343414188,0.98186197,3139.7,3139.6,1.0748]
[1763343414586,0.974,3139.4,3139.3,1.07780931]
[1763343414784,1.49033,3139.6,3139.5,1.7542]
[1763343415200,0.974,3139.4,3139.3,0.00300931]
[1763343415498,0.974,3139.4,3139.3,1.07780931]
[1763343415690,0.974,3139.4,3139.3,0.00300931]
[1763343416989,0.51634,3139.5,3139.4,1.0748]
[1763343417298,16.711,3139.6,3139.5,1.7542]
[1763343418496,17.22733,3139.6,3139.3,0.00300931]
[1763343418798,16.711,3139.6,3139.5,1.7542]
[1763343419098,16.711,3139.6,3139.3,0.00300931]
[1763343419099,0.974,3139.4,3139.3,0.00300931]
[1763343420292,3.2078,3139.5,3139.4,1.0748]
[1763343420486,0.00786197,3139.7,3139.6,1.59112]
[1763343420697,0.00786197,3139.7,3139.6,10.79892]
[1763343420995,0.98186197,3139.7,3139.3,0.84457996]
[1763343421201,0.00786197,3139.7,3139.3,1.07780931]
[1763343421395,0.98186197,3139.7,3139.6,1.0748]
[1763343421600,1.49035,3139.4,3139.3,0.00300931]
[1763343422100,0.974,3139.4,3139.3,0.00300931]
[1763343422292,15.74086197,3139.7,3139.6,1.0748]
[1763343422700,16.71486197,3139.7,3139.6,1.0748]
[1763343423596,0.00786197,3139.7,3139.6,1.0748]
[1763343423897,20.08329167,3140.5,3140.4,1.0748]
[1763343424095,1.14449167,3141.0,3140.9,1.0748]
[1763343424289,7.2086351,3141.7,3140.9,1.0748]
[1763343424290,0.51598,3141.7,3141.5,1.7542]
[1763343424490,1.14449167,3142.0,3141.8,1.0748]
[1763343424696,18.9388,3142.1,3142.0,1.7542]
[1763343424903,0.00325495,3142.1,3142.0,1.75653636]
[1763343434611,3.2078,3143.4,3143.3,1.0748]
[1763343434815,3.2078,3143.4,3142.0,0.68173636]
[1763343434816,0.974,3142.4,3142.0,0.68173636]
[1763343435117,3.72354,3143.2,3142.6,1.0748]
[1763343435418,3.72354,3143.2,3142.5,0.6794]
[1763343435419,3.2078,3143.2,3143.1,1.0748]
[1763343435609,3.21088217,3143.2,3143.1,1.0748]
[1763343435808,0.00308217,3143.2,3143.1,1.0748]
[1763343437925,0.90788217,3143.2,3143.0,0.6794]
[1763343438221,0.9048,3143.1,3142.7,3.2078]
[1763343438425,3.21088217,3143.2,3143.1,0.9644]
[1763343439123,0.952,3143.1,3142.7,3.2078]
[1763343439323,4.1598,3142.8,3142.3,3.2078]
[1763343439629,4.1598,3142.8,3141.8,3.2078]
[1763343439630,0.952,3142.6,3141.8,3.2078]
[1763343439819,0.51589,3142.3,3141.8,3.2078]
[1763343440026,0.51587,3142.4,3141.8,3.2078]
[1763343440229,0.51588,3142.3,3141.8,3.2078]
[1763343440427,0.51588,3142.3,3142.2,0.9644]
[1763343440623,3.2078,3142.9,3142.2,0.9644]
[1763343440624,0.51587,3142.4,3142.2,0.9644]
[1763343440819,0.51587,3142.4,3142.3,0.9644]
[1763343441019,1.46787,3142.4,3142.3,0.9644]
[1763343441221,3.2078,3142.5,3141.8,3.2078]
[1763343441530,0.952,3142.1,3142.0,0.00233636]
[1763343441919,1.46796,3141.8,3141.7,0.00477525]
[1763343442122,0.51604,3141.4,3141.0,3.7911]
[1763343442321,0.516,3141.6,3141.0,3.7911]
[1763343442517,0.51602,3141.5,3141.4,0.9644]
[1763343443023,0.00477525,3141.8,3141.7,0.9644]
[1763343444230,3.2078,3142.1,3142.0,1.5477]
[1763343445337,0.51587,3142.4,3142.0,1.5477]
[1763343445521,0.51587,3142.4,3142.3,0.9644]
[1763343445721,3.2078,3142.5,3142.3,0.9644]
[1763343445920,3.72365,3142.5,3142.3,0.9644]
[1763343446221,3.2078,3142.9,3142.5,0.5833]
[1763343446416,3.2078,3142.9,3142.8,0.9644]
[1763343447925,0.00308217,3143.2,3143.1,0.9644]
[1763343448431,0.95508217,3143.2,3143.1,0.9644]
[1763343449024,0.952,3143.1,3143.0,0.5833]
[1763343450625,0.952,3142.9,3142.8,0.00477525]
[1763343450933,4.1598,3142.9,3142.8,0.00477525]
[1763343453036,4.1598,3142.9,3141.7,7.0088]
[1763343453037,0.952,3142.1,3141.7,7.0088]
[1763343453230,0.952,3142.1,3141.7,3.2078]
[1763343453533,0.952,3141.6,3141.5,0.5833]
[1763343453728,0.952,3141.5,3141.4,0.00278514]
[1763343454332,0.00477525,3141.8,3141.5,0.5833]
[1763343454534,0.52074525,3141.8,3141.5,0.5833]
[1763343454731,0.51598,3141.7,3141.5,0.5833]
[1763343454934,0.952,3141.6,3141.5,0.5833]
[1763343455131,0.52074525,3141.8,3141.5,1.5477]
[1763343455835,0.51599,3141.7,3141.5,1.5477]
[1763343456727,0.00477525,3141.8,3141.5,1.5477]
[1763343457135,0.00477525,3141.8,3141.7,0.9644]
[1763343457633,0.00477525,3141.8,3141.7,4.1722]
[1763343458229,4.67567,3142.4,3142.0,0.5833]
[1763343458628,4.67567,3142.4,3142.3,0.9644]
[1763343458629,3.72367,3142.4,3142.3,0.9644]
[1763343459338,4.1598,3142.4,3142.3,0.9644]
[1763343460137,4.1598,3142.4,3142.0,0.5833]
[1763343460730,3.72367,3142.4,3141.8,0.51595]
[1763343461342,3.72367,3142.4,3141.7,3.2078]
[1763343461839,3.2078,3142.4,3142.0,0.5833]
[1763343462040,3.72367,3142.4,3142.0,0.5833]
[1763343462233,3.2078,3142.4,3142.0,0.5833]
[1763343463735,3.72367,3142.4,3142.0,0.5833]
[1763343463936,0.952,3141.8,3141.7,4.1722]
[1763343464331,0.51592,3142.1,3141.7,4.1722]
[1763343464742,0.952,3141.8,3141.7,3.2078]
[1763343464927,3.2078,3141.8,3141.4,0.96718514]
[1763343465241,3.2078,3141.8,3141.7,0.9644]
[1763343465536,4.67577,3141.8,3141.5,0.5833]
[1763343465740,0.952,3141.6,3141.5,0.5833]
[1763343465925,3.2078,3141.8,3141.5,0.5833]
[1763343465926,3.2078,3141.8,3141.5,1.5477]
[1763343466340,3.72376,3141.8,3141.5,1.5477]
[1763343466637,0.51598,3141.7,3141.5,1.5477]
[1763343466939,0.51598,3141.7,3141.4,0.00278514]
[1763343466940,0.952,3141.5,3141.4,0.00278514]
[1763343467539,3.72376,3141.8,3141.5,0.5833]
[1763343468841,0.952,3141.6,3141.5,0.5833]
[1763343470043,0.8718,3141.5,3141.4,0.00278514]
[1763343470341,0.8718,3141.5,3141.4,0.82218514]
[1763343470645,3.2078,3141.9,3141.5,0.5473]
[1763343470945,0.51598,3141.7,3141.5,0.5473]
[1763343471534,0.8718,3141.6,3141.5,0.5473]
[1763343473453,0.8718,3141.6,3141.4,0.00278514]
[1763343473454,0.8718,3141.5,3141.4,0.00278514]
[1763343473951,0.8718,3141.5,3141.4,0.82218514]
[1763343474550,0.51596,3141.8,3141.5,0.5473]
[1763343475051,0.8718,3141.6,3141.5,1.3667]
[1763343475748,0.8718,3141.6,3141.5,0.5473]
[1763343476248,0.8718,3141.5,3141.4,0.00278514]
[1763343476745,0.516,3141.6,3141.4,0.82218514]
[1763343476945,0.516,3141.6,3141.5,0.5473]
[1763343477146,0.8718,3141.6,3141.5,1.3667]
[1763343480250,3.2078,3141.9,3141.8,0.8194]
[1763343480440,0.8718,3141.5,3141.4,0.00278514]
[1763343480842,0.8718,3140.6,3140.5,1.43313211]
[1763343481041,0.8718,3140.6,3140.5,0.5833]
[1763343481847,0.87552671,3140.6,3140.5,0.00286367]
[1763343482655,1.38801,3140.3,3140.2,0.00477525]
[1763343483353,3.2078,3140.4,3139.5,3.7551]
[1763343483354,0.8718,3139.6,3139.5,3.7551]
[1763343483652,0.8718,3139.6,3139.5,3.75810829]
[1763343484043,0.8718,3139.6,3139.5,4.57750829]
[1763343484240,0.51628,3139.9,3139.5,4.57750829]
[1763343484448,0.51627,3140.0,3139.5,4.57750829]
[1763343484642,0.51628,3139.9,3139.5,4.57750829]
[1763343484946,0.51626,3140.0,3139.5,3.75810829]
[1763343485148,3.2078,3140.4,3139.5,3.75810829]
[1763343485349,0.51626,3140.0,3139.5,3.75810829]
[1763343485750,0.8718,3139.6,3139.5,3.21080829]
[1763343486150,0.8718,3139.6,3139.5,0.00300829]
[1763343488043,1.38814,3139.5,3139.4,0.00477525]
[1763343489051,0.8718,3139.5,3139.4,0.00729528]
[1763343489252,3.2078,3139.7,3139.6,0.8194]
[1763343489953,3.2078,3140.1,3139.6,0.8194]
[1763343490148,0.8718,3139.6,3139.5,3.2078]
[1763343490448,0.8718,3139.6,3139.4,0.00729528]
[1763343490449,0.8718,3139.5,3139.4,0.00729528]
[1763343496357,3.988,3139.7,3139.6,0.7951]
[1763343496747,3.988,3139.7,3139.5,0.4349]
[1763343497055,0.7802,3139.6,3139.5,1.23]
[1763343498656,0.7456,3139.5,3139.4,0.00729528]
[1763343499656,3.9534,3139.7,3139.6,0.7841]
[1763343499854,3.2078,3139.7,3139.6,0.7841]
[1763343500053,0.7456,3139.6,3139.5,0.4407]
[1763343500361,0.7456,3139.6,3139.5,1.2248]
[1763343500557,3.2078,3139.7,3139.6,0.7841]
[1763343501060,3.9534,3139.7,3139.6,0.7841]
[1763343501954,3.2078,3139.7,3139.6,0.7841]
[1763343502455,0.7456,3139.5,3139.4,0.00729528]
[1763343502651,3.2078,3139.7,3139.6,0.7841]
[1763343503056,0.7456,3139.6,3139.5,0.4407]
[1763343503255,0.7456,3139.6,3139.5,1.2248]
[1763343505651,3.9534,3139.7,3139.6,0.7841]
[1763343505855,0.7456,3139.6,3139.5,1.2248]
[1763343506156,1.26194,3139.5,3139.4,0.00729528]
[1763343506452,3.2078,3139.7,3139.6,0.7841]
[1763343506852,3.9534,3139.7,3139.6,0.7841]
[1763343507158,0.7456,3139.6,3139.5,1.2248]
[1763343507553,3.72411,3139.7,3139.6,0.7841]
[1763343507554,3.9534,3139.7,3139.6,0.7841]
[1763343508357,0.7456,3139.7,3139.6,0.7841]
[1763343509852,1.14449167,3140.0,3139.9,0.7841]
[1763343510056,1.71590313,3140.1,3140.0,1.2248]
[1763343510057,1.26185,3140.1,3140.0,1.2248]
[1763343512062,0.51625,3140.1,3140.0,1.2248]
[1763343512360,3.2078,3140.2,3140.1,0.7841]
[1763343512361,5.09789167,3140.2,3140.1,0.7841]
[1763343512563,3.2078,3140.2,3140.1,0.7841]
[1763343512754,3.2078,3140.2,3140.1,1.72181698]
[1763343513660,3.9534,3140.2,3140.1,1.72181698]
[1763343514161,3.9534,3140.2,3140.1,0.7841]
[1763343514361,0.7456,3139.9,3139.8,0.84983211]
[1763343514561,0.36313981,3139.9,3139.8,0.7841]
[1763343514767,3.2078,3140.2,3139.7,0.84983211]
[1763343514768,0.5651,3139.8,3139.7,0.84983211]
[1763343514969,0.5651,3139.7,3139.6,1.63393211]
[1763343515261,0.5651,3139.7,3139.6,0.7841]
[1763343515460,1.08138,3139.9,3139.8,0.7841]
[1763343515663,0.5651,3139.9,3139.8,0.7841]
[1763343516970,1.08138,3139.9,3139.5,1.29053211]
[1763343517169,0.5651,3139.9,3139.5,1.80686211]
[1763343517371,0.5651,3139.5,3139.4,0.85712739]
[1763343517561,3.2078,3139.8,3139.7,0.7841]
[1763343517870,0.5651,3139.6,3139.5,1.2248]
[1763343518364,0.51629,3139.8,3139.5,1.2248]
[1763343518571,0.5651,3139.8,3139.7,0.7841]
[1763343518765,0.5651,3139.8,3139.5,0.4407]
[1763343518970,0.5651,3139.6,3139.5,1.2248]
[1763343519375,1.14449167,3140.0,3139.5,1.2248]
[1763343519573,0.5651,3139.6,3139.5,1.2248]
[1763343520173,0.5651,3139.6,3139.5,0.4407]
[1763343524978,0.5651,3139.6,3139.5,1.2248]
[1763343525683,0.5651,3139.6,3139.5,0.4407]
[1763343526379,0.5651,3139.2,3139.1,0.39034469]
[1763343526578,1.08157,3138.7,3138.5,2.23773332]
[1763343526782,0.5651,3138.2,3138.1,3.9919]
[1763343527081,1.71086322,3138.9,3138.8,0.7841]
[1763343527281,0.51645,3138.8,3138.5,0.4407]
[1763343527480,0.5651,3138.6,3138.5,0.4442903]
[1763343527977,0.5651,3138.6,3138.5,1.2283903]
[1763343528177,0.5651,3138.6,3138.5,0.4442903]
[1763343528378,0.5651,3138.6,3138.5,0.0035903]
[1763343529584,0.4229,3138.4,3138.3,0.00477525]
[1763343530488,0.4229,3137.8,3137.7,3.9627]
[1763343530676,0.93952,3137.8,3137.7,0.75747326]
[1763343530879,0.4229,3137.8,3137.7,0.75747326]
[1763343531082,3.2078,3138.4,3138.3,0.7549]
[1763343531083,3.6307,3138.4,3138.3,0.7549]
[1763343532187,3.6307,3138.4,3138.0,0.44097525]
[1763343532188,0.51654,3138.3,3138.0,0.44097525]
[1763343532487,0.93944,3138.3,3138.2,0.7549]
[1763343535492,0.51647,3138.7,3138.5,0.4362]
[1763343535793,0.4229,3138.6,3138.5,0.4362]
[1763343536492,3.2110736,3138.8,3138.0,3.64877525]
[1763343537386,0.51653,3138.4,3138.0,3.64877525]
[1763343537794,0.93943,3138.4,3138.3,0.7549]
[1763343538092,0.51649,3138.6,3138.5,1.1911]
[1763343538294,3.6339736,3138.8,3138.7,0.7549]
[1763343539394,3.2110736,3138.8,3138.7,0.7549]
[1763343539695,0.5165,3138.5,3138.0,3.64877525]
[1763343539899,0.51652,3138.4,3138.0,3.64877525]
[1763343540081,3.2110736,3138.8,3138.0,3.64877525]
[1763343540282,0.4229,3138.1,3138.0,3.64877525]
[1763343540697,0.4229,3138.1,3138.0,4.40367525]
[1763343540997,0.93952,3137.8,3137.7,0.00257326]
[1763343542087,4.14732,3137.8,3137.7,0.00257326]
[1763343542287,4.14732,3137.8,3136.2,3.2078]
[1763343542288,0.4182,3136.6,3136.2,3.2078]
[1763343542591,0.4182,3136.3,3136.2,3.2078]
[1763343543294,0.42066145,3136.3,3136.2,3.2115714]
[1763343543497,0.00246145,3136.3,3136.2,3.9664714]
[1763343544200,3.2078,3137.8,3137.3,0.7549]
[1763343544493,3.2078,3137.8,3137.7,0.7549]
[1763343544791,1.85904483,3138.5,3137.5,0.4362]
[1763343544792,3.2078,3138.5,3138.4,0.7549]
[1763343545091,4.14871396,3138.5,3138.4,0.00364074]
[1763343545295,3.63221396,3138.5,3138.4,0.00364074]
[1763343547393,0.4206,3138.2,3138.1,0.00477525]
[1763343548295,0.4206,3138.2,3138.1,0.00785757]
[1763343548704,3.21161396,3138.5,3138.1,0.76275757]
[1763343549000,3.21161396,3138.5,3138.4,0.7549]
[1763343549300,4.14872396,3138.5,3138.1,0.00785757]
[1763343549894,0.4206,3138.2,3138.1,0.00785757]
[1763343552691,3.21161396,3138.5,3138.1,0.76275757]
[1763343552897,0.4206,3138.2,3138.1,0.00785757]
[1763343554193,3.35441396,3138.5,3137.6,3.2078]
[1763343554394,3.2078,3138.1,3137.6,3.2078]
[1763343554593,0.4206,3137.7,3137.6,3.2078]
[1763343555302,0.4206,3137.7,3137.6,3.21002899]
[1763343556206,3.4296,3138.1,3138.0,0.3878]
[1763343556907,1.36756322,3138.4,3138.0,0.3878]
[1763343557108,3.21161396,3138.5,3137.6,3.21002899]
[1763343557109,0.2218,3137.7,3137.6,3.21002899]
[1763343557414,1.14576322,3138.3,3137.6,0.61672899]
[1763343557713,0.2218,3137.7,3137.6,0.00222899]
[1763343558709,3.2078,3138.1,3137.6,0.61672899]
[1763343559211,0.5166,3137.9,3137.6,0.61672899]
[1763343559412,4.87014322,3138.1,3137.6,0.61672899]
[1763343559708,1.14576322,3138.2,3138.1,0.6211]
[1763343559907,4.35737718,3138.5,3138.4,0.6211]
[1763343560110,3.21161396,3138.5,3138.4,0.6211]
[1763343561212,0.00381396,3138.5,3138.4,0.6211]
[1763343563502,0.00381396,3138.5,3138.4,3.8289]
[1763343564206,0.21281396,3138.5,3138.4,3.8289]
[1763343564405,0.00381396,3138.5,3138.4,3.8289]
[1763343565512,0.21281396,3138.5,3138.4,3.8289]
[1763343565914,0.21281396,3138.5,3138.4,3.2078]
[1763343566515,0.00381396,3138.5,3138.0,0.402]
[1763343566813,0.209,3138.1,3138.0,0.402]
[1763343567018,0.51656,3138.2,3138.0,1.0231]
[1763343567513,0.209,3138.1,3138.0,0.402]
[1763343567809,1.14957718,3138.5,3137.6,0.00222899]
[1763343567810,1.14576322,3138.4,3137.6,0.00222899]
[1763343568007,0.51657,3138.2,3137.6,0.00222899]
[1763343568204,0.51659,3138.0,3137.6,0.00222899]
[1763343568812,0.209,3137.7,3137.6,0.62332899]
[1763343569016,3.2078,3138.1,3137.6,0.62332899]
[1763343569215,3.4168,3138.1,3138.0,0.402]
[1763343571017,0.209,3137.7,3137.6,0.00222899]
[1763343573328,3.4168,3137.7,3137.6,0.00222899]
[1763343574731,0.209,3137.4,3137.3,0.00318345]
[1763343575431,0.72568,3137.4,3137.3,0.00318345]
[1763343575819,0.72568,3137.4,3137.3,0.0058309]
[1763343576725,0.209,3137.4,3136.5,3.644]
[1763343577035,4.35356322,3136.8,3136.0,3.6098]
[1763343577331,15.654,3136.7,3136.0,3.6098]
[1763343577830,15.654,3136.7,3136.0,4.23381051]
[1763343577831,0.209,3136.1,3136.0,4.23381051]
[1763343578032,0.00269412,3136.1,3136.0,4.23381051]
[1763343583028,15.65877525,3136.7,3136.6,0.6211]
[1763343583224,15.87047525,3136.7,3136.6,0.6211]
[1763343583535,15.87047525,3136.7,3136.0,3.61271051]
[1763343583536,0.51686,3136.4,3136.0,3.61271051]
[1763343584037,0.52054454,3136.4,3136.3,0.6211]
[1763343584338,0.73224454,3136.4,3136.3,0.6211]
[1763343585842,0.21538454,3136.4,3136.3,0.6211]
[1763343586341,0.00368454,3136.4,3136.3,0.6211]
[1763343591245,0.00368454,3136.4,3136.2,0.6121]
[1763343591549,0.51686,3136.3,3136.2,0.6121]
[1763343592149,0.00368454,3136.4,3136.3,0.6121]
[1763343600147,0.51686,3136.3,3136.2,0.6121]
[1763343600343,0.536,3136.1,3136.0,0.40491051]
[1763343600548,16.16591,3136.1,3136.0,1.0127]
[1763343600940,3.2078,3136.3,3136.2,0.6121]
[1763343601143,0.00368454,3136.4,3136.3,0.6121]
[1763343601453,4.14808056,3137.2,3137.1,0.6121]
[1763343601454,3.2078,3137.2,3137.1,0.6121]
[1763343602249,16.79376322,3137.3,3137.1,0.6121]
[1763343602454,15.648,3137.3,3137.2,0.6121]
[1763343602748,1.14576322,3137.8,3137.7,0.6121]
[1763343602952,1.77736322,3138.0,3137.9,0.6121]
[1763343603148,0.51658,3138.1,3138.0,0.6121]
[1763343603350,1.77736322,3138.1,3138.0,0.6121]
[1763343603849,0.2816,3138.0,3137.5,3.6084]
[1763343604353,0.51661,3137.9,3137.5,3.6084]
[1763343604652,0.6316,3138.0,3137.9,0.6121]
[1763343605053,1.14977473,3138.1,3138.0,1.0127]
[1763343605556,0.51658,3138.0,3137.5,3.6084]
[1763343605853,0.00401151,3138.1,3138.0,1.0127]
[1763343606849,0.00478309,3138.4,3138.3,0.6121]
[1763343607048,3.2078,3139.0,3138.9,0.6121]
[1763343607248,3.2078,3139.0,3138.0,0.64955837]
[1763343607249,0.6316,3138.6,3138.0,0.4006]
[1763343607650,4.01463,3139.0,3138.5,0.8202]
[1763343607849,1.14805,3138.9,3138.8,0.6121]
[1763343608062,1.14809,3138.6,3138.5,0.00478309]
[1763343608354,0.51645,3138.8,3138.5,0.61688309]
[1763343608555,1.14805,3138.8,3138.7,0.6121]
[1763343609848,0.51648,3138.7,3138.5,0.00478309]
[1763343610052,0.6316,3138.6,3138.5,0.61688309]
[1763343611061,0.6316,3138.6,3138.5,0.00478309]
[1763343611257,0.6316,3138.6,3138.5,0.61688309]
[1763343612551,1.14805,3138.9,3138.8,0.6121]
[1763343612760,0.51645,3138.9,3138.8,0.6121]
[1763343613659,1.14805,3138.9,3138.8,0.6121]
[1763343613859,0.51647,3138.8,3138.5,0.21288309]
[1763343614162,1.14807,3138.8,3138.7,0.6121]
[1763343614360,4.64891876,3139.0,3138.9,0.6121]
[1763343614758,0.51646,3138.8,3138.5,0.21288309]
[1763343614960,0.6316,3138.6,3138.5,0.61688309]
[1763343615155,1.14805,3138.9,3138.8,0.6121]
[1763343615655,0.51647,3138.8,3138.5,0.21288309]
[1763343615850,0.6316,3138.6,3138.5,0.61688309]
[1763343616659,0.3218,3138.0,3137.4,3.2078]
[1763343616852,0.5865,3137.8,3137.7,0.545]
[1763343617057,0.51659,3138.0,3137.9,0.545]
[1763343617458,0.51659,3138.0,3137.4,3.2078]
[1763343617459,0.51662,3137.8,3137.4,3.2078]
[1763343617755,3.2078,3137.7,3137.3,0.00478309]
[1763343617957,0.5865,3137.4,3137.3,0.00478309]
[1763343618765,16.14868,3137.5,3137.4,0.5497]
[1763343619560,16.71398,3137.5,3137.4,0.5497]
[1763343623861,15.632,3137.5,3137.4,0.5497]
[1763343624055,0.5653,3137.4,3137.3,0.00478309]
[1763343625163,0.5653,3137.4,3137.3,0.55448309]
[1763343625465,15.632,3137.5,3137.4,0.5497]
[1763343625764,0.5653,3137.4,3137.3,0.55448309]
[1763343626271,3.2078,3137.7,3137.3,0.55448309]
[1763343626857,0.5653,3137.4,3137.3,0.00478309]
[1763343627966,0.5653,3137.2,3137.1,0.00271562]
[1763343628956,0.5653,3137.2,3137.1,0.55241562]
[1763343629162,15.63378309,3137.5,3137.4,0.5497]
[1763343629360,16.52158309,3137.5,3137.1,0.00271562]
[1763343629562,16.47295309,3137.5,3137.1,0.55241562]
[1763343629771,16.52158309,3137.5,3137.4,0.5497]
[1763343630772,16.52158309,3137.5,3137.1,0.00271562]
[1763343630979,15.95628309,3137.5,3137.1,0.00271562]
[1763343631169,0.5653,3137.2,3137.1,0.55241562]
[1763343631670,0.5167,3137.3,3137.1,0.00271562]
[1763343631971,0.5653,3137.3,3137.2,0.5497]
[1763343632162,0.5653,3137.2,3137.1,0.00271562]
[1763343632365,1.082,3137.3,3137.2,0.5497]
[1763343633065,15.63378309,3137.5,3137.4,0.5497]
[1763343633667,15.63378309,3137.5,3137.4,1.06638]
[1763343633864,0.00478309,3137.5,3137.4,1.06638]
[1763343634465,0.00478309,3137.5,3137.4,0.5497]
[1763343634771,0.57008309,3137.5,3137.4,0.5497]
[1763343635069,0.00478309,3137.5,3137.4,0.5497]
[1763343639267,0.57008309,3137.5,3137.4,0.5497]